fUST/lending_fUST_20250422
["ID","MTS","AMOUNT","RATE_DAILY","PERIOD"]
[358640113,1745328642658,-500.0,0.00022191,2]
[358640116,1745328642670,-254.94146799,0.00022191,2]
[358640119,1745328642680,-500.0,0.00022191,2]
[358640122,1745328642690,-500.0,0.00022191,2]
[358640124,1745328642699,-500.0,0.00022191,2]
[358640125,1745328642709,-500.0,0.00022191,2]
[358640127,1745328642718,-500.0,0.00022191,2]
[358640128,1745328642728,-588.85,0.00022191,2]
[358640129,1745328642738,-500.0,0.00022191,2]
[358640130,1745328642748,-444.06608682,0.00022191,2]
[358640131,1745328642758,-500.0,0.00022191,2]
[358640132,1745328642768,-500.0,0.00022191,2]
[358640134,1745328642778,-500.0,0.00022191,2]
[358640135,1745328642788,-500.0,0.00022191,2]
[358640136,1745328642798,-500.0,0.00022191,2]
[358640137,1745328642808,-304.20680205,0.00022191,2]
[358640138,1745328642818,-500.0,0.00022191,2]
[358640139,1745328642829,-500.0,0.00022191,2]
[358640141,1745328642839,-500.0,0.00022191,2]
[358640143,1745328642850,-500.0,0.00022191,2]
[358640144,1745328642860,-418.11835149,0.00022191,2]
[358640145,1745328642870,-500.0,0.00022191,2]
[358640146,1745328642881,-500.0,0.00022191,2]
[358640147,1745328642890,-515.25,0.00022191,2]
[358640149,1745328642900,-500.0,0.00022191,2]
[358640151,1745328642909,-652.12,0.00022191,2]
[358640153,1745328642920,-500.0,0.00022191,2]
[358640155,1745328642930,-599.47,0.00022191,2]
[358640157,1745328642941,-500.0,0.00022191,2]
[358640158,1745328642951,-500.0,0.00022191,2]
[358640159,1745328642960,-500.0,0.00022191,2]
[358640160,1745328642970,-500.0,0.00022191,2]
[358640161,1745328642980,-243.28,0.00022191,2]
[358640162,1745328642991,-990.94,0.00022191,2]
[358640163,1745328643000,-500.0,0.00022191,2]
[358640164,1745328643010,-632.66703073,0.00022191,2]
[358640165,1745328643020,-500.0,0.00022191,2]
[358640166,1745328643030,-500.0,0.00022191,2]
[358640167,1745328643040,-544.12,0.00022191,2]
[358640168,1745328643049,-500.0,0.00022191,2]
[358640169,1745328643059,-500.0,0.00022191,2]
[358640170,1745328643068,-500.0,0.00022191,2]
[358640171,1745328643079,-500.0,0.00022191,2]
[358640172,1745328643090,-500.0,0.00022191,2]
[358640173,1745328643099,-203.14244207,0.00022191,2]
[358640175,1745328643109,-504.24,0.00022191,2]
[358640177,1745328643119,-500.0,0.00022191,2]
[358640179,1745328643129,-500.0,0.00022191,2]
[358640181,1745328643139,-1390.35,0.00022191,2]
[358640182,1745328643149,-515.51396382,0.00022191,2]
[358640183,1745328643159,-500.0,0.00022191,2]
[358640184,1745328643170,-520.1,0.00022191,2]
[358640185,1745328643181,-500.0,0.00022191,2]
[358640186,1745328643191,-500.0,0.00022191,2]
[358640187,1745328643201,-500.0,0.00022191,2]
[358640188,1745328643210,-500.0,0.00022191,2]
[358640189,1745328643220,-500.0,0.00022191,2]
[358640190,1745328643230,-500.0,0.00022191,2]
[358640191,1745328643239,-500.0,0.00022191,2]
[358640192,1745328643250,-3381.71,0.00022191,2]
[358640193,1745328643260,-500.0,0.00022191,2]
[358640194,1745328643270,-9580.96,0.00022191,2]
[358640195,1745328643280,-528.23856941,0.00022191,2]
[358640196,1745328643290,-500.0,0.00022191,2]
[358640197,1745328643300,-500.0,0.00022191,2]
[358640198,1745328643309,-2668.26195548,0.00022191,2]
[358640200,1745328643452,-266.22804452,0.00022191,2]
[358640201,1745328643463,-307.47999198,0.00022191,2]
[358640202,1745328643473,-500.0,0.00022191,2]
[358640203,1745328643483,-500.0,0.00022191,2]
[358640204,1745328643494,-500.0,0.00022191,2]
[358640205,1745328643505,-500.0,0.00022191,2]
[358640206,1745328643514,-500.0,0.00022191,2]
[358640207,1745328643525,-500.0,0.00022191,2]
[358640208,1745328643535,-500.0,0.00022191,2]
[358640209,1745328643544,-500.0,0.00022191,2]
[358640210,1745328643554,-600.81,0.00022191,2]
[358640211,1745328643564,-500.0,0.00022191,2]
[358640212,1745328643574,-500.0,0.00022191,2]
[358640213,1745328643584,-628.1,0.00022191,2]
[358640214,1745328643593,-500.0,0.00022191,2]
[358640215,1745328643604,-623.74,0.00022191,2]
[358640216,1745328643615,-500.0,0.00022191,2]
[358640217,1745328643624,-500.0,0.00022191,2]
[358640218,1745328643634,-500.0,0.00022191,2]
[358640219,1745328643643,-540.05,0.00022191,2]
[358640220,1745328643654,-500.0,0.00022191,2]
[358640221,1745328643664,-547.48,0.00022191,2]
[358640222,1745328643673,-500.0,0.00022191,2]
[358640223,1745328643686,-500.0,0.00022191,2]
[358640224,1745328643695,-500.0,0.00022191,2]
[358640225,1745328643705,-500.0,0.00022191,2]
[358640226,1745328643715,-500.0,0.00022191,2]
[358640227,1745328643725,-500.0,0.00022191,2]
[358640228,1745328643735,-500.0,0.00022191,2]
[358640229,1745328643745,-500.0,0.00022191,2]
[358640230,1745328643754,-528.45935928,0.00022191,2]
[358640231,1745328643764,-2441.35,0.00022191,2]
[358640232,1745328643774,-500.0,0.00022191,2]
[358640233,1745328643784,-500.0,0.00022191,2]
[358640234,1745328643793,-500.0,0.00022191,2]
[358640235,1745328643803,-500.0,0.00022191,2]
[358640236,1745328643813,-500.0,0.00022191,2]
[358640237,1745328643823,-500.0,0.00022191,2]
[358640238,1745328643834,-525.79,0.00022191,2]
[358640239,1745328643844,-500.0,0.00022191,2]
[358640240,1745328643853,-191.5905361,0.00022191,2]
[358640241,1745328643863,-500.0,0.00022191,2]
[358640242,1745328643874,-1611.1,0.00022191,2]
[358640243,1745328643884,-500.0,0.00022191,2]
[358640244,1745328643894,-500.0,0.00022191,2]
[358640245,1745328643904,-500.0,0.00022191,2]
[358640246,1745328643956,-665.66,0.00022191,2]
[358640247,1745328643967,-533.74,0.00022191,2]
[358640248,1745328643978,-500.0,0.00022191,2]
[358640249,1745328643988,-5471.47,0.00022191,2]
[358640250,1745328643998,-1926.75,0.00022191,2]
[358640251,1745328644008,-2807.88,0.00022191,2]
[358640252,1745328644019,-702.34,0.00022191,2]
[358640253,1745328644029,-500.0,0.00022191,2]
[358640254,1745328644039,-571.93,0.00022191,2]
[358640255,1745328644049,-500.0,0.00022191,2]
[358640256,1745328644059,-509.00604722,0.00022191,2]
[358640257,1745328644069,-1514.56,0.00022191,2]
[358640258,1745328644083,-534.01,0.00022191,2]
[358640259,1745328644093,-500.0,0.00022191,2]
[358640260,1745328644103,-486.34626933,0.00022191,2]
[358640261,1745328644113,-860.41,0.00022191,2]
[358640262,1745328644123,-500.0,0.00022191,2]
[358640263,1745328644133,-500.0,0.00022191,2]
[358640264,1745328644143,-626.44,0.00022191,2]
[358640265,1745328644153,-500.0,0.00022191,2]
[358640266,1745328644163,-500.0,0.00022191,2]
[358640267,1745328644172,-3939.43,0.00022191,2]
[358640268,1745328644182,-500.0,0.00022191,2]
[358640269,1745328644191,-500.0,0.00022191,2]
[358640270,1745328644202,-500.0,0.00022191,2]
[358640271,1745328644212,-500.0,0.00022191,2]
[358640272,1745328644221,-1016.75,0.00022191,2]
[358640273,1745328644231,-500.0,0.00022191,2]
[358640274,1745328644241,-500.0,0.00022191,2]
[358640275,1745328644251,-500.0,0.00022191,2]
[358640276,1745328644261,-151.32188304,0.00022191,2]
[358640277,1745328644271,-500.0,0.00022191,2]
[358640278,1745328644281,-500.0,0.00022191,2]
[358640279,1745328644290,-639.24,0.00022191,2]
[358640280,1745328644301,-505.84,0.00022191,2]
[358640281,1745328644311,-500.0,0.00022191,2]
[358640282,1745328644320,-288.05475448,0.00022457,2]
[358640283,1745328644333,-500.0,0.00022465,2]
[358640284,1745328644343,-500.0,0.00022465,2]
[358640285,1745328644352,-682.39,0.00022465,2]
[358640286,1745328644362,-560.52,0.00022465,2]
[358640287,1745328644372,-500.0,0.00022465,2]
[358640288,1745328644383,-500.0,0.00022465,2]
[358640289,1745328644394,-500.0,0.00022465,2]
[358640290,1745328644404,-500.0,0.00022465,2]
[358640291,1745328644414,-500.0,0.00022465,2]
[358640292,1745328644423,-500.0,0.00022465,2]
[358640293,1745328644432,-500.0,0.00022465,2]
[358640294,1745328644443,-500.0,0.00022465,2]
[358640295,1745328644453,-500.0,0.00022465,2]
[358640296,1745328644466,-362.365965,0.00022465,2]
[358640297,1745328644479,-137.634035,0.00022465,2]
[358640298,1745328644489,-588.85,0.00022465,2]
[358640299,1745328644498,-423.32,0.00022465,2]
[358640300,1745328644508,-500.0,0.00022465,2]
[358640301,1745328644518,-500.0,0.00022465,2]
[358640302,1745328644527,-220.42130514,0.00022465,2]
[358640303,1745328644549,-255.83204123,0.00022191,2]
[358640304,1745328644639,-234.73295558,0.00021917,2]
[358640305,1745328644649,-312.44596683,0.00022191,2]
[358640306,1745328644659,-153.03627229,0.00022194,2]
[358640307,1745328644675,-443.06491505,0.00022194,2]
[358640308,1745328644685,-279.57869486,0.00022465,2]
[358640309,1745328644695,-500.0,0.00022465,2]
[358640310,1745328644706,-197.90427406,0.00022465,2]
[358640311,1745328644720,-302.09572594,0.00022465,2]
[358640312,1745328644730,-330.93018929,0.00022465,2]
[358640313,1745328644743,-169.06981071,0.00022465,2]
[358640314,1745328644754,-500.0,0.00022465,2]
[358640315,1745328644765,-500.0,0.00022465,2]
[358640316,1745328644775,-286.28608699,0.00022465,2]
[358640317,1745328645046,-596.10118734,0.00022365,2]
[358640318,1745328645056,-228.96391301,0.00022465,2]
[358640319,1745328645067,-252.98,0.00022465,2]
[358640320,1745328645077,-652.12,0.00022465,2]
[358640321,1745328645087,-500.0,0.00022465,2]
[358640322,1745328645097,-599.47,0.00022465,2]
[358640323,1745328645107,-500.0,0.00022465,2]
[358640324,1745328645118,-500.0,0.00022465,2]
[358640325,1745328645128,-990.94,0.00022465,2]
[358640326,1745328645138,-500.0,0.00022465,2]
[358640327,1745328645148,-238.47527188,0.00022465,2]
[358640328,1745328645162,-261.52472812,0.00022465,2]
[358640329,1745328645173,-500.0,0.00022465,2]
[358640330,1745328645184,-544.12,0.00022465,2]
[358640331,1745328645195,-500.0,0.00022465,2]
[358640332,1745328645206,-500.0,0.00022465,2]
[358640333,1745328645219,-500.0,0.00022465,2]
[358640334,1745328645231,-500.0,0.00022465,2]
[358640335,1745328645242,-500.0,0.00022465,2]
[358640336,1745328645252,-504.24,0.00022465,2]
[358640337,1745328645262,-500.0,0.00022465,2]
[358640338,1745328645272,-1390.35,0.00022465,2]
[358640339,1745328645282,-500.0,0.00022465,2]
[358640340,1745328645292,-520.1,0.00022465,2]
[358640341,1745328645302,-500.0,0.00022465,2]
[358640342,1745328645314,-500.0,0.00022465,2]
[358640343,1745328645325,-500.0,0.00022465,2]
[358640344,1745328645337,-500.0,0.00022465,2]
[358640345,1745328645347,-500.0,0.00022465,2]
[358640346,1745328645357,-500.0,0.00022465,2]
[358640347,1745328645368,-9580.96,0.00022465,2]
[358640348,1745328645379,-500.0,0.00022465,2]
[358640349,1745328645389,-500.0,0.00022465,2]
[358640350,1745328645400,-2934.49,0.00022465,2]
[358640351,1745328645410,-500.0,0.00022465,2]
[358640352,1745328645421,-395.16758141,0.00022465,2]
[358640353,1745328645432,-500.0,0.00022465,2]
[358640354,1745328645444,-500.0,0.00022465,2]
[358640355,1745328645459,-496.79961516,0.00022465,2]
[358640356,1745328645473,-500.0,0.00022465,2]
[358640357,1745328645483,-600.81,0.00022465,2]
[358640358,1745328645493,-500.0,0.00022465,2]
[358640359,1745328645504,-500.0,0.00022465,2]
[358640360,1745328645514,-628.1,0.00022465,2]
[358640361,1745328645525,-623.74,0.00022465,2]
[358640362,1745328645535,-500.0,0.00022465,2]
[358640363,1745328645547,-500.0,0.00022465,2]
[358640364,1745328645558,-540.05,0.00022465,2]
[358640365,1745328645568,-547.48,0.00022465,2]
[358640367,1745328645582,-500.0,0.00022465,2]
[358640369,1745328645593,-193.16,0.00022465,2]
[358640370,1745328645604,-500.0,0.00022465,2]
[358640371,1745328645616,-500.0,0.00022465,2]
[358640372,1745328645627,-500.0,0.00022465,2]
[358640374,1745328645637,-500.0,0.00022465,2]
[358640376,1745328645649,-2441.35,0.00022465,2]
[358640378,1745328645659,-500.0,0.00022465,2]
[358640380,1745328645670,-500.0,0.00022465,2]
[358640382,1745328645680,-500.0,0.00022465,2]
[358640384,1745328645690,-500.0,0.00022465,2]
[358640386,1745328645701,-500.0,0.00022465,2]
[358640388,1745328645710,-500.0,0.00022465,2]
[358640390,1745328645720,-525.79,0.00022465,2]
[358640392,1745328645730,-500.0,0.00022465,2]
[358640394,1745328645740,-463.34664367,0.00022465,2]
[358640396,1745328645750,-1611.1,0.00022465,2]
[358640398,1745328645760,-500.0,0.00022465,2]
[358640400,1745328645770,-500.0,0.00022465,2]
[358640402,1745328645780,-665.66,0.00022465,2]
[358640404,1745328645789,-533.74,0.00022465,2]
[358640406,1745328645799,-500.0,0.00022465,2]
[358640408,1745328645809,-5471.47,0.00022465,2]
[358640410,1745328645819,-1926.75,0.00022465,2]
[358640412,1745328645830,-2807.88,0.00022465,2]
[358640414,1745328645840,-702.34,0.00022465,2]
[358640416,1745328645850,-500.0,0.00022465,2]
[358640418,1745328645860,-571.93,0.00022465,2]
[358640420,1745328645870,-500.0,0.00022465,2]
[358640422,1745328645880,-1514.56,0.00022465,2]
[358640423,1745328645890,-534.01,0.00022465,2]
[358640424,1745328645899,-500.0,0.00022465,2]
[358640425,1745328645909,-860.41,0.00022465,2]
[358640426,1745328645919,-500.0,0.00022465,2]
[358640427,1745328645929,-3939.43,0.00022465,2]
[358640428,1745328645939,-500.0,0.00022465,2]
[358640429,1745328645949,-500.0,0.00022465,2]
[358640431,1745328645959,-1016.75,0.00022465,2]
[358640432,1745328645969,-500.0,0.00022465,2]
[358640433,1745328645979,-500.0,0.00022465,2]
[358640435,1745328645989,-639.24,0.00022465,2]
[358640437,1745328645999,-500.0,0.00022466,2]
[358640439,1745328646009,-500.0,0.00022466,2]
[358640441,1745328646019,-225.71875844,0.00022466,2]
[358640443,1745328646029,-151.0,0.00022466,2]
[358640444,1745328646039,-151.0,0.00022466,2]
[358640446,1745328646049,-224.51952508,0.00022466,2]
[358640448,1745328646058,-500.0,0.00022466,2]
[358640449,1745328646068,-160.0,0.00022471,2]
[358640450,1745328646081,-729.16666667,0.00022471,2]
[358640451,1745328646090,-420.73667954,0.00022471,2]
[358640452,1745328646100,-160.0,0.00022471,2]
[358640453,1745328646110,-160.0,0.00022471,2]
[358640454,1745328646120,-160.0,0.00022471,2]
[358640455,1745328646129,-160.0,0.00022471,2]
[358640456,1745328646140,-12570.97479393,0.00022471,2]
[358640457,1745328646150,-282.28074123,0.00022652,2]
[358640458,1745328646160,-582.69967538,0.00022739,2]
[358640459,1745328646170,-500.0,0.00022739,2]
[358640460,1745328646180,-682.39,0.00022739,2]
[358640461,1745328646190,-560.52,0.00022739,2]
[358640462,1745328646201,-500.0,0.00022739,2]
[358640463,1745328646211,-500.0,0.00022739,2]
[358640464,1745328646221,-500.0,0.00022739,2]
[358640465,1745328646230,-500.0,0.00022739,2]
[358640466,1745328646240,-500.0,0.00022739,2]
[358640467,1745328646250,-500.0,0.00022739,2]
[358640468,1745328646260,-500.0,0.00022739,2]
[358640469,1745328646270,-500.0,0.00022739,2]
[358640470,1745328646280,-412.18666766,0.00022739,2]
[358640471,1745328646290,-500.0,0.00022739,2]
[358640472,1745328646301,-588.85,0.00022739,2]
[358640473,1745328646311,-500.0,0.00022739,2]
[358640474,1745328646324,-500.0,0.00022739,2]
[358640475,1745328646341,-500.0,0.00022739,2]
[358640476,1745328646355,-500.0,0.00022739,2]
[358640477,1745328646366,-500.0,0.00022739,2]
[358640478,1745328646377,-462.17080485,0.00022739,2]
[358640479,1745328646387,-500.0,0.00022739,2]
[358640480,1745328646398,-515.25,0.00022739,2]
[358640481,1745328646408,-652.12,0.00022739,2]
[358640482,1745328646418,-500.0,0.00022739,2]
[358640483,1745328646428,-599.47,0.00022739,2]
[358640484,1745328646438,-177.15,0.00022739,2]
[358640485,1745328646452,-487.15241679,0.00022739,2]
[358640486,1745328646462,-990.94,0.00022739,2]
[358640487,1745328646473,-500.0,0.00022739,2]
[358640488,1745328646482,-500.0,0.00022739,2]
[358640489,1745328646495,-541.04,0.00022739,2]
[358640490,1745328646505,-544.12,0.00022739,2]
[358640491,1745328646515,-500.0,0.00022739,2]
[358640492,1745328646526,-500.0,0.00022739,2]
[358640493,1745328646539,-500.0,0.00022739,2]
[358640494,1745328646549,-500.0,0.00022739,2]
[358640495,1745328646559,-500.0,0.00022739,2]
[358640496,1745328646569,-504.24,0.00022739,2]
[358640497,1745328646581,-500.0,0.00022739,2]
[358640498,1745328646591,-1390.35,0.00022739,2]
[358640499,1745328646601,-500.0,0.00022739,2]
[358640500,1745328646612,-520.1,0.00022739,2]
[358640501,1745328646622,-500.0,0.00022739,2]
[358640502,1745328646633,-500.0,0.00022739,2]
[358640503,1745328646643,-500.0,0.00022739,2]
[358640504,1745328646653,-500.0,0.00022739,2]
[358640505,1745328646663,-500.0,0.00022739,2]
[358640506,1745328646674,-500.0,0.00022739,2]
[358640507,1745328646685,-9580.96,0.00022739,2]
[358640508,1745328646695,-500.0,0.00022739,2]
[358640509,1745328646706,-500.0,0.00022739,2]
[358640510,1745328646716,-2934.49,0.00022739,2]
[358640511,1745328646727,-500.0,0.00022739,2]
[358640512,1745328646737,-500.0,0.00022739,2]
[358640513,1745328646747,-500.0,0.00022739,2]
[358640514,1745328646756,-384.20423523,0.00022739,2]
[358640515,1745328646766,-600.81,0.00022739,2]
[358640516,1745328646776,-500.0,0.00022739,2]
[358640517,1745328646786,-500.0,0.00022739,2]
[358640518,1745328646795,-628.1,0.00022739,2]
[358640519,1745328646806,-623.74,0.00022739,2]
[358640520,1745328646816,-500.0,0.00022739,2]
[358640521,1745328646827,-500.0,0.00022739,2]
[358640522,1745328646837,-540.05,0.00022739,2]
[358640523,1745328646847,-547.48,0.00022739,2]
[358640524,1745328646857,-500.0,0.00022739,2]
[358640525,1745328646867,-195.28,0.00022739,2]
[358640526,1745328646876,-500.0,0.00022739,2]
[358640527,1745328646886,-500.0,0.00022739,2]
[358640528,1745328646896,-2441.35,0.00022739,2]
[358640529,1745328646907,-500.0,0.00022739,2]
[358640530,1745328646917,-278.19,0.00022739,2]
[358640531,1745328646927,-186.25,0.00022739,2]
[358640532,1745328646937,-75.23593351,0.00022739,2]
[358640533,1745328647000,-424.76406649,0.00022739,2]
[358640534,1745328647010,-500.0,0.00022739,2]
[358640535,1745328647021,-500.0,0.00022739,2]
[358640536,1745328647031,-364.15593351,0.00022739,2]
[358640537,1745328647044,-161.63406649,0.00022739,2]
[358640538,1745328647055,-500.0,0.00022739,2]
[358640539,1745328647065,-1611.1,0.00022739,2]
[358640540,1745328647075,-500.0,0.00022739,2]
[358640541,1745328647088,-500.0,0.00022739,2]
[358640542,1745328647098,-665.66,0.00022739,2]
[358640543,1745328647108,-533.74,0.00022739,2]
[358640544,1745328647118,-500.0,0.00022739,2]
[358640545,1745328647128,-5471.47,0.00022739,2]
[358640546,1745328647139,-1926.75,0.00022739,2]
[358640547,1745328647149,-2807.88,0.00022739,2]
[358640548,1745328647159,-702.34,0.00022739,2]
[358640549,1745328647169,-500.0,0.00022739,2]
[358640550,1745328647180,-571.93,0.00022739,2]
[358640551,1745328647190,-500.0,0.00022739,2]
[358640552,1745328647200,-466.59593351,0.00022739,2]
[358640553,1745328647214,-1047.96406649,0.00022739,2]
[358640554,1745328647225,-9.77860342,0.00022739,2]
[358640555,1745328737300,10999.5,0.00045435,30]
[358640569,1745329192538,-2171.0,0.00020516,2]
[358640570,1745329274702,2061.90742414,0.00045417,30]
[358640571,1745329279721,200.0,0.00045417,30]
[358640572,1745329280303,278.209999,0.00045417,30]
[358640580,1745329407811,1103.7716487,0.00045417,30]
[358640581,1745329422876,217.98109511,0.00045419,120]
[358640598,1745329773174,12516.0,0.00045419,30]
[358640650,1745329832339,-451.79522765,0.00020059,2]
[358640657,1745329832400,-1312.87014915,0.00020059,2]
[358640659,1745329832410,-764.473905,0.00020137,2]
[358640661,1745329832421,-2171.0,0.00020416,2]
[358640663,1745329832432,-250.0,0.00020516,2]
[358640665,1745329832442,-300.0,0.00020805,2]
[358640667,1745329832453,-300.0,0.00020805,2]
[358640669,1745329832464,-300.0,0.00020805,2]
[358640671,1745329832475,-211.1174264,0.00020806,2]
[358640673,1745329832485,-171.1470978,0.00020806,2]
[358640675,1745329832495,-4093.0747723,0.00020806,2]
[358640677,1745329832505,-208.6259579,0.00020973,2]
[358640680,1745329832518,-334.62561635,0.00021416,2]
[358640682,1745329832528,-500.0,0.00021416,2]
[358640685,1745329832538,-500.0,0.00021416,2]
[358640687,1745329832548,-196.07471642,0.00021416,2]
[358640689,1745329832559,-272.03810759,0.00021416,2]
[358640691,1745329832569,-310612.31358752,0.00021417,2]
[358640693,1745329832582,-960.05583154,0.00021417,2]
[358640695,1745329832594,-8286.7489693,0.00021417,2]
[358640761,1745329838565,-694.2,0.00021417,2]
[358640762,1745329838681,-14325.54754721,0.00021417,2]
[358640763,1745329838694,-35121.13406443,0.00021417,2]
[358640764,1745329838704,-376.7766971,0.00021741,2]
[358640765,1745329838714,-500.0,0.00021917,2]
[358640766,1745329838724,-500.0,0.00021917,2]
[358640767,1745329838734,-553.93,0.00021917,2]
[358640768,1745329838745,-264.85450772,0.00021917,2]
[358640769,1745329838754,-2034.45,0.00021917,2]
[358640770,1745329838765,-500.0,0.00021917,2]
[358640771,1745329838775,-500.0,0.00021917,2]
[358640772,1745329838784,-500.0,0.00021917,2]
[358640773,1745329838795,-500.0,0.00021917,2]
[358640774,1745329838805,-500.0,0.00021917,2]
[358640775,1745329838815,-500.0,0.00021917,2]
[358640776,1745329838826,-500.0,0.00021917,2]
[358640777,1745329838836,-500.0,0.00021917,2]
[358640778,1745329838846,-604.0,0.00021917,2]
[358640779,1745329838861,-500.0,0.00021917,2]
[358640780,1745329838870,-500.0,0.00021917,2]
[358640781,1745329838880,-189.62633072,0.00021917,2]
[358640798,1745329844977,-310.37366928,0.00021917,2]
[358640799,1745329844988,-500.0,0.00021917,2]
[358640800,1745329845000,-500.0,0.00021917,2]
[358640801,1745329845010,-500.0,0.00021917,2]
[358640802,1745329845020,-500.0,0.00021917,2]
[358640803,1745329845030,-615.0,0.00021917,2]
[358640804,1745329845041,-500.0,0.00021917,2]
[358640805,1745329845050,-913.02,0.00021917,2]
[358640806,1745329845060,-155.55633072,0.00021917,2]
[358640812,1745329845284,-344.44366928,0.00021917,2]
[358640813,1745329845294,-500.0,0.00021917,2]
[358640814,1745329845305,-500.0,0.00021917,2]
[358640815,1745329845315,-500.0,0.00021917,2]
[358640816,1745329845324,-500.0,0.00021917,2]
[358640817,1745329845335,-500.0,0.00021917,2]
[358640818,1745329845344,-5.67557895,0.00021917,2]
[358640830,1745329846705,-494.32442105,0.00021917,2]
[358640831,1745329846715,-503.97,0.00021917,2]
[358640832,1745329846726,-500.0,0.00021917,2]
[358640833,1745329846736,-500.0,0.00021917,2]
[358640834,1745329846747,-500.0,0.00021917,2]
[358640835,1745329846758,-500.0,0.00021917,2]
[358640836,1745329846768,-1281.92,0.00021917,2]
[358640837,1745329846778,-500.0,0.00021917,2]
[358640838,1745329846788,-508.53238347,0.00021917,2]
[358640839,1745329846798,-500.0,0.00021917,2]
[358640840,1745329846809,-500.0,0.00021917,2]
[358640841,1745329846819,-526.16,0.00021917,2]
[358640842,1745329846829,-500.0,0.00021917,2]
[358640843,1745329846838,-630.45,0.00021917,2]
[358640844,1745329846848,-519.06,0.00021917,2]
[358640845,1745329846861,-500.0,0.00021917,2]
[358640846,1745329846871,-500.0,0.00021917,2]
[358640847,1745329846880,-368.0,0.00021917,2]
[358640848,1745329846890,-500.0,0.00021917,2]
[358640849,1745329846900,-3223.58,0.00021917,2]
[358640850,1745329846909,-500.0,0.00021917,2]
[358640851,1745329846919,-500.0,0.00021917,2]
[358640852,1745329846928,-500.0,0.00021917,2]
[358640853,1745329846938,-500.0,0.00021917,2]
[358640854,1745329846953,-1329.172702,0.00021917,2]
[358640855,1745329846996,-1116.237298,0.00021917,2]
[358640856,1745329847006,-468.7180944,0.00021917,2]
[358640857,1745329847018,-31.2819056,0.00021917,2]
[358640858,1745329847028,-500.0,0.00021917,2]
[358640859,1745329847038,-500.0,0.00021917,2]
[358640860,1745329847048,-8414.78,0.00021917,2]
[358640861,1745329847057,-500.0,0.00021917,2]
[358640862,1745329847067,-500.0,0.00021917,2]
[358640863,1745329847076,-500.0,0.00021917,2]
[358640864,1745329847086,-500.0,0.00021917,2]
[358640865,1745329847096,-500.0,0.00021917,2]
[358640866,1745329847105,-500.0,0.00021917,2]
[358640867,1745329847119,-500.0,0.00021917,2]
[358640868,1745329847129,-500.0,0.00021917,2]
[358640869,1745329847139,-500.0,0.00021917,2]
[358640870,1745329847149,-500.0,0.00021917,2]
[358640871,1745329847159,-495.2907828,0.00021917,2]
[358640872,1745329847169,-550.11,0.00021917,2]
[358640873,1745329847178,-500.0,0.00021917,2]
[358640874,1745329847188,-500.0,0.00021917,2]
[358640875,1745329847198,-500.0,0.00021917,2]
[358640876,1745329847208,-500.0,0.00021917,2]
[358640877,1745329847218,-500.0,0.00021917,2]
[358640878,1745329847227,-500.0,0.00021917,2]